bitfinex/quotes_ETHUSD_20250616
["timestamp","ask_amount","ask_price","bid_price","bid_amount"]
[1750084470513,40.0,2656.5,2655.6,0.7898]
[1750084470710,40.0,2656.3,2655.9,3.76517654]
[1750084470967,0.7724,2656.4,2655.9,7.783]
[1750084471367,0.7724,2656.4,2656.1,3.76483276]
[1750084471534,30.0,2656.3,2655.6,2.649]
[1750084471738,0.188,2655.9,2655.8,3.76534377]
[1750084472048,0.89608678,2656.6,2655.8,0.8119]
[1750084472358,0.188,2656.0,2655.9,7.804]
[1750084472559,0.188,2656.0,2655.9,11.56908736]
[1750084472766,0.188,2656.0,2655.9,3.76508736]
[1750084472972,0.188,2656.0,2655.9,11.57008736]
[1750084473908,0.89602859,2656.8,2656.4,3.76448053]
[1750084474115,30.0,2656.7,2656.4,3.76448053]
[1750084474416,30.0,2656.7,2655.9,7.805]
[1750084474565,0.188,2656.4,2656.3,3.76463501]
[1750084474779,0.188,2656.4,2656.3,11.54663501]
[1750084475031,30.0,2656.7,2656.3,7.782]
[1750084475316,30.0,2656.7,2655.6,3.76562735]
[1750084475317,3.76474763,2656.3,2655.6,3.76562735]
[1750084475626,30.0,2656.2,2655.8,3.76522879]
[1750084475928,0.7631,2656.0,2655.4,2.65]
[1750084476226,0.7631,2656.0,2655.9,3.765202]
[1750084476394,0.7631,2656.0,2655.5,3.76576915]
[1750084476722,1.215898,2656.0,2655.7,3.76536834]
[1750084476928,0.7631,2656.0,2655.5,7.769]
[1750084477135,0.7631,2656.0,2655.9,3.765202]
[1750084477480,10.89618181,2656.4,2655.8,0.03765213]
[1750084477481,30.0,2656.3,2655.8,0.03765213]
[1750084477708,30.0,2656.3,2655.3,6.41594222]
[1750084477709,30.0,2656.3,2656.1,3.76482307]
[1750084478182,30.0,2656.3,2656.1,3.76491124]
[1750084478400,30.0,2656.3,2656.1,3.7648198]
[1750084478739,30.0,2656.3,2656.0,3.76499138]
[1750084478915,30.0,2656.3,2656.1,3.76482951]
[1750084479117,30.0,2656.3,2656.0,3.76500891]
[1750084479283,30.0,2656.2,2656.0,3.76492523]
[1750084479480,40.0,2656.0,2655.1,10.864]
[1750084479706,1.50808495,2656.3,2655.3,3.76602521]
[1750084479887,30.0,2656.2,2655.8,3.76533335]
[1750084480130,30.0,2656.0,2655.8,3.76533335]
[1750084480330,4.04748076,2656.1,2655.4,7.737]
[1750084480331,3.1508085,2656.1,2655.4,7.737]
[1750084480537,30.0,2656.1,2655.5,3.76576915]
[1750084480715,30.0,2656.2,2655.9,3.76506766]
[1750084480880,30.0,2656.3,2655.4,7.737]
[1750084481080,30.0,2656.3,2655.5,0.0376509]
[1750084481324,0.7538,2656.4,2656.2,3.76467005]
[1750084481498,0.7538,2656.4,2656.2,3.76468045]
[1750084481702,0.7538,2656.4,2656.3,3.76463501]
[1750084481900,10.0,2656.8,2656.3,3.76463501]
[1750084482237,30.0,2656.6,2656.3,3.76452741]
[1750084482396,1.46613648,2656.7,2656.4,3.76449329]
[1750084482397,0.89755121,2656.5,2656.4,3.76449329]
[1750084482589,0.89755121,2656.6,2656.2,3.76477674]
[1750084482784,0.7866,2656.8,2656.1,7.719]
[1750084483000,0.7866,2656.8,2656.5,3.76426174]
[1750084483218,1.86526,2656.8,2656.3,3.76454031]
[1750084483388,30.55,2656.7,2655.4,3.76591097]
[1750084483594,43.76437681,2656.5,2656.0,3.76494427]
[1750084483788,30.0,2656.3,2655.8,7.693]
[1750084484013,0.89867019,2656.2,2655.8,7.693]
[1750084484216,0.55,2656.3,2655.8,7.693]
[1750084484414,30.0,2656.2,2655.8,7.693]
[1750084484750,30.0,2656.0,2655.7,7.695]
[1750084484891,30.0,2656.5,2655.7,7.695]
[1750084485092,0.89864818,2656.4,2656.1,3.76491443]
[1750084485331,4.38219824,2656.6,2655.7,11.46047397]
[1750084485332,0.188,2656.0,2655.7,11.46047397]
[1750084485517,0.89864818,2656.4,2655.7,7.695]
[1750084485712,30.0,2656.5,2656.0,3.76494832]
[1750084485930,0.188,2656.3,2656.2,3.76477674]
[1750084486250,30.0,2657.1,2656.3,3.76463501]
[1750084486395,0.89857901,2657.0,2656.7,3.76399765]
[1750084486596,30.0,2656.9,2656.3,0.03764116]
[1750084486832,0.66666667,2657.2,2656.3,0.03764116]
[1750084486833,30.0,2657.1,2656.4,10.251]
[1750084487094,0.66666667,2657.2,2656.9,3.76378486]
[1750084487451,0.66666667,2657.2,2657.0,7.682]
[1750084487739,0.66666667,2657.2,2656.4,0.7667]
[1750084488030,0.66666667,2657.2,2657.1,3.76350156]
[1750084488209,0.66666667,2657.2,2657.1,11.43550156]
[1750084488834,0.66666667,2657.2,2657.1,7.673]
[1750084488997,0.66666667,2657.2,2656.5,11.22506214]
[1750084489534,40.0,2656.9,2656.6,10.239]
[1750084489734,3.76378252,2657.0,2656.6,2.567]
[1750084489735,3.81504654,2656.8,2656.6,2.567]
[1750084489944,30.0,2657.1,2656.6,2.567]
[1750084490100,30.0,2656.8,2656.6,2.567]
[1750084490296,30.0,2657.1,2656.6,2.567]
[1750084490618,0.66666667,2657.2,2656.6,2.567]
[1750084490832,0.66666667,2657.2,2656.8,3.76385103]
[1750084491020,0.66666667,2657.2,2656.7,3.76405444]
[1750084491021,0.66666667,2657.2,2657.0,3.76364021]
[1750084491194,0.66666667,2657.2,2657.1,3.76350156]
[1750084491396,4.43002957,2657.2,2657.1,7.651]
[1750084491624,5.24934361,2657.2,2657.0,7.651]
[1750084491828,0.66666667,2657.2,2657.1,7.651]
[1750084492132,0.66666667,2657.2,2657.1,11.41450156]
[1750084492636,0.66666667,2657.2,2657.1,7.644]
[1750084492934,1.21666667,2657.2,2656.6,3.76420989]
[1750084493137,0.66666667,2657.2,2656.9,3.76378486]
[1750084493329,0.66666667,2657.2,2657.0,7.641]
[1750084493837,0.66666667,2657.2,2657.1,3.76350156]
[1750084494198,0.66666667,2657.2,2657.1,3.80113226]
[1750084494403,0.66666667,2657.2,2657.1,3.76350156]
[1750084494632,0.66666667,2657.2,2657.0,7.641]
[1750084494840,0.66666667,2657.2,2657.0,3.76356721]
[1750084495009,0.66666667,2657.2,2657.1,11.39850156]
[1750084495425,0.66666667,2657.2,2657.1,7.635]
[1750084495609,0.66666667,2657.2,2656.9,3.76366925]
[1750084495818,0.66666667,2657.2,2657.0,7.618]
[1750084496149,1.10964774,2657.2,2657.0,7.618]
[1750084496699,0.188,2657.0,2656.9,11.37571396]
[1750084496900,0.188,2657.0,2656.9,7.605]
[1750084497145,0.188,2657.0,2656.9,11.36878486]
[1750084497750,0.188,2657.0,2656.9,11.36678486]
[1750084498064,0.188,2657.0,2656.9,12.18168486]
[1750084498429,0.188,2657.0,2656.9,11.36678486]
[1750084498678,0.66666667,2657.2,2657.1,3.76350156]
[1750084499446,0.66666667,2657.2,2657.1,11.35950156]
[1750084500128,0.66666667,2657.2,2657.0,3.76355487]
[1750084500343,0.66666667,2657.2,2656.6,0.8149]
[1750084500344,0.66666667,2657.2,2656.9,3.7636921]
[1750084500553,30.0,2657.1,2657.0,11.3506432]
[1750084500844,0.62900249,2657.2,2657.1,4.53510156]
[1750084501154,0.49873178,2657.2,2657.1,14.57272327]
[1750084501445,0.44558138,2657.2,2657.1,14.53510156]
[1750084501649,0.6928125,2657.8,2657.7,3.76265191]
[1750084501806,0.02129992,2658.1,2658.0,4.53382723]
[1750084502007,0.02,2659.9,2658.5,14.53311965]
[1750084502257,0.02,2659.9,2658.5,24.68911965]
[1750084502411,10.0,2659.8,2658.5,24.68911965]
[1750084502606,0.02,2659.9,2658.5,25.0689574]
[1750084503038,0.02,2659.9,2658.5,14.9149574]
[1750084503350,0.02,2659.9,2658.5,25.0649574]
[1750084503512,0.02,2659.9,2658.5,28.88000394]
[1750084503711,0.02,2659.9,2658.5,18.73000394]
[1750084503913,10.0,2659.8,2658.5,25.0559574]
[1750084504170,10.41509126,2659.4,2658.4,3.76155861]
[1750084504311,10.41509126,2659.4,2658.0,11.6359]
[1750084504312,0.816,2658.7,2658.0,7.574]
[1750084504514,0.816,2658.7,2658.1,3.7620857]
[1750084504730,4.57728511,2658.7,2658.2,7.58]
[1750084505018,4.57728511,2658.7,2657.5,2.566]
[1750084505019,0.55,2658.2,2657.5,2.566]
[1750084505220,30.0,2658.1,2657.6,7.577]
[1750084505449,30.0,2658.2,2657.6,7.577]
[1750084505650,30.0,2658.5,2657.6,7.577]
[1750084505947,3.76213167,2658.1,2657.4,3.76303849]
[1750084506144,40.0,2658.1,2657.5,10.135]
[1750084506311,40.0,2658.1,2657.6,7.57]
[1750084506312,33.76219806,2658.1,2657.6,7.57]
[1750084506505,30.0,2657.9,2657.7,7.57]
[1750084506741,3.45542981,2658.0,2657.7,7.57]
[1750084507057,3.76228334,2658.0,2657.7,7.57]
[1750084507211,0.7921,2658.2,2657.7,7.57]
[1750084507714,4.55406451,2658.2,2657.7,7.57]
[1750084507914,0.005,2658.6,2657.8,0.83762381]
[1750084508229,0.005,2658.6,2658.5,3.76151965]
[1750084508447,0.005,2658.6,2658.5,10.037]
[1750084508668,0.005,2658.6,2658.2,0.188]
[1750084508871,3.766381,2658.6,2657.6,3.76278953]
[1750084509070,3.76222723,2658.0,2657.7,2.483]
[1750084509259,30.0,2657.9,2657.7,2.483]
[1750084509574,0.3766381,2658.5,2657.1,0.188]
[1750084509575,0.188,2657.7,2657.1,0.188]
[1750084509772,30.0,2657.8,2657.0,2.483]
[1750084509773,0.188,2657.2,2657.0,2.483]
[1750084509943,0.188,2657.2,2657.1,7.542]
[1750084510459,0.188,2657.2,2657.0,7.537]
[1750084510662,0.188,2657.0,2656.9,10.842]
[1750084511141,30.0,2657.5,2656.9,20.858]
[1750084511468,30.0,2657.5,2657.0,0.31418238]
[1750084511469,30.0,2657.4,2657.0,0.31418238]
[1750084511665,30.0,2657.4,2657.0,10.36718238]
[1750084511870,0.83,2658.2,2657.5,3.76293508]
[1750084512191,30.0,2658.1,2657.7,4.58813726]
[1750084512328,0.005,2658.6,2657.8,3.7363335]
[1750084512551,0.005,2658.6,2658.0,3.76214333]
[1750084512731,0.005,2658.6,2658.1,7.568]
[1750084512732,0.83,2658.4,2658.1,7.568]
[1750084512988,30.0,2658.3,2658.0,7.567]
[1750084513487,0.55,2658.3,2657.8,7.564]
[1750084513651,30.0,2658.3,2658.0,3.76220416]
[1750084513992,3.083,2658.3,2657.9,3.76236878]
[1750084514146,30.0,2658.3,2658.1,3.76206861]
[1750084514338,0.83,2658.4,2658.2,7.564]
[1750084514532,30.0,2658.3,2658.1,7.558]
[1750084514934,0.005,2658.6,2657.9,7.558]
[1750084514935,4.31225468,2658.0,2657.9,7.558]
[1750084515249,30.0,2657.8,2657.7,7.558]
[1750084515448,30.0,2657.7,2657.3,2.483]
[1750084515649,3.76279349,2657.6,2657.3,2.483]
[1750084515891,30.0,2657.4,2657.3,10.04]
[1750084516044,5.11797669,2657.4,2657.3,2.483]
[1750084516384,4.3132183,2657.3,2656.9,10.842]
[1750084516682,30.0,2657.2,2656.9,10.842]
[1750084516831,30.0,2656.9,2656.8,7.549]
[1750084517030,0.55,2656.9,2656.1,0.02]
[1750084517229,30.0,2656.7,2656.3,3.76459232]
[1750084517460,30.0,2656.7,2656.4,7.543]
[1750084517660,30.0,2656.7,2656.2,3.76474893]
[1750084517661,10.0,2656.5,2656.1,2.503]
[1750084517967,0.55,2656.6,2656.2,11.30174576]
[1750084518178,30.0,2656.5,2656.2,11.30174576]
[1750084518365,30.0,2656.5,2656.2,7.537]
[1750084518672,30.0,2656.5,2656.2,11.30175028]
[1750084518880,30.0,2656.5,2656.1,0.02]
[1750084519052,40.0,2656.5,2656.1,7.551]
[1750084519250,32.73493666,2656.5,2656.1,0.02]
[1750084519450,30.0,2656.4,2656.1,0.02]
[1750084520238,0.55,2656.4,2656.1,0.02]
[1750084520672,30.0,2656.5,2656.1,0.02]
[1750084520851,56.04955976,2656.2,2656.1,0.02]
[1750084521182,31.3624,2656.2,2656.1,0.02]
[1750084521555,35.12717674,2656.2,2656.1,0.02]
[1750084521755,5.12717674,2656.2,2656.1,0.02]
[1750084521939,35.12717674,2656.2,2656.1,0.02]
[1750084522270,35.17744654,2656.2,2656.1,0.02]
[1750084522581,38.94222328,2656.2,2656.1,0.02]
[1750084523252,48.94222328,2656.2,2656.1,0.02]
[1750084523579,48.94222328,2656.2,2655.1,0.02]
[1750084523580,1.3753,2655.3,2655.1,0.02]
[1750084523750,0.8253,2655.3,2655.1,0.02]
[1750084523952,30.0,2656.1,2655.1,0.88296764]
[1750084524164,0.188,2655.7,2655.6,3.76562735]
[1750084524370,0.188,2655.7,2655.2,0.188]
[1750084524576,0.188,2655.2,2655.1,0.02]
[1750084524779,0.188,2655.2,2655.1,11.30733648]
[1750084525082,0.188,2655.2,2655.1,7.541]
[1750084525246,0.188,2655.2,2655.1,13.78933648]
[1750084525450,0.188,2655.2,2655.1,13.58733648]
[1750084525884,0.188,2655.2,2654.6,1.0133]
[1750084526067,30.0,2655.7,2655.1,6.25033648]
[1750084526278,30.0,2655.6,2655.2,11.27511398]
[1750084526462,30.0,2655.6,2655.2,3.76611398]
[1750084526697,30.0,2655.6,2655.3,11.27504196]
[1750084526905,30.0,2655.6,2654.7,0.03766211]
[1750084526906,0.188,2655.1,2654.6,1.0133]
[1750084527061,30.0,2655.9,2655.5,3.76569451]
[1750084527241,30.0,2655.9,2655.6,9.989]
[1750084527446,30.0,2655.9,2655.8,3.76534377]
[1750084527647,0.6721,2656.3,2656.0,3.76497499]
[1750084527943,0.6721,2656.3,2656.0,3.76498937]
[1750084528139,30.0,2656.2,2656.1,3.76491848]
[1750084528342,0.6721,2656.3,2656.0,3.76498432]
[1750084528803,0.6721,2656.3,2656.2,3.76477674]
[1750084528995,30.0,2656.7,2656.1,11.25689755]
[1750084529177,30.0,2656.7,2656.3,3.76450742]
[1750084529383,30.0,2656.8,2656.7,3.7640682]
[1750084529581,0.02,2656.9,2656.8,4.51882652]
[1750084530259,0.02,2656.9,2656.8,13.74592652]
[1750084532001,0.02,2656.9,2656.8,4.56502652]
[1750084532200,0.02,2656.9,2656.8,13.72992652]
[1750084533350,0.02,2656.9,2656.8,13.72292652]
[1750084534257,0.02,2656.9,2656.3,2.30323697]
[1750084534449,0.02,2656.9,2656.4,9.943]
[1750084534656,0.02,2656.9,2656.8,3.76392652]
[1750084534872,0.02,2656.9,2656.8,11.22192652]
[1750084535091,0.02,2656.9,2656.8,7.458]
[1750084535297,0.02,2656.9,2656.8,11.22192652]
[1750084535666,0.02,2656.9,2656.8,11.21692652]
[1750084535848,0.02,2656.9,2656.8,7.449]
[1750084536047,34.57233905,2656.8,2656.3,6.16654435]
[1750084536265,40.0,2656.5,2656.3,2.402]
[1750084536590,30.0,2656.4,2656.3,9.849]
[1750084536792,40.0,2656.5,2656.3,9.849]
[1750084536997,30.0,2656.4,2656.3,9.849]
[1750084537171,4.62344654,2656.8,2656.2,3.76477674]
[1750084537172,0.188,2656.3,2656.2,3.76477674]
[1750084537365,30.0,2656.6,2656.2,7.438]
[1750084537689,0.188,2656.2,2656.0,3.76493185]
[1750084537894,30.0,2656.4,2656.1,9.841]
[1750084538197,0.188,2656.0,2655.8,2.402]
[1750084538376,0.55,2656.7,2656.1,3.76486724]
[1750084538377,30.0,2656.6,2656.1,3.76486724]
[1750084538676,30.0,2656.6,2655.9,11.20114815]
[1750084538909,30.0,2656.6,2656.3,3.76456441]
[1750084539414,30.0,2656.6,2656.5,3.76435159]
[1750084539578,0.8084,2656.8,2656.5,7.429]
[1750084539895,30.0,2656.7,2656.5,7.429]
[1750084540052,1.26760571,2656.8,2655.9,0.03764509]
[1750084540053,0.188,2656.5,2656.4,7.423]
[1750084540252,0.188,2656.4,2656.1,6.16684244]
[1750084540463,0.55,2656.5,2656.2,7.416]
[1750084540663,0.8084,2656.8,2656.2,7.416]
[1750084540664,30.0,2656.7,2656.2,7.416]
[1750084540871,0.02,2656.9,2656.6,3.76417027]
[1750084541063,0.02,2656.9,2656.6,3.76412568]
[1750084541306,0.02,2656.9,2656.5,6.16628163]
[1750084541307,0.188,2656.6,2656.5,6.16628163]
[1750084541474,0.188,2656.6,2656.5,13.58428163]
[1750084541992,0.188,2656.6,2656.5,3.76428163]
[1750084542174,0.188,2656.6,2656.5,11.18135159]
[1750084543469,0.188,2656.6,2656.5,7.417]
[1750084543670,0.9853,2656.6,2655.9,0.9811]
[1750084543999,0.188,2656.4,2656.2,3.76477674]
[1750084544165,30.0,2656.5,2656.3,7.395]
[1750084544719,30.0,2656.5,2656.4,3.76449329]
[1750084544875,0.7973,2656.6,2656.4,3.76449329]
[1750084545075,0.188,2656.4,2656.3,7.395]
[1750084545268,0.188,2656.4,2656.3,11.15963501]
[1750084546472,0.188,2656.4,2656.3,7.383]
[1750084546672,0.188,2656.4,2656.0,2.402]
[1750084546907,40.0,2656.2,2655.6,10.848]
[1750084547114,40.7855,2656.0,2655.4,2.402]
[1750084547314,40.7855,2656.0,2655.0,3.76645905]
[1750084547315,30.0,2655.4,2655.0,3.76645905]
[1750084547517,0.7855,2655.1,2654.7,3.76684244]
[1750084547722,0.7855,2655.1,2654.6,2.402]
[1750084547723,0.7855,2655.1,2654.6,6.16898063]
[1750084547899,0.7855,2655.1,2654.7,11.13780853]
[1750084548113,0.7855,2655.1,2654.8,3.76666004]
[1750084548316,0.7855,2655.1,2654.7,3.76684561]
[1750084548626,0.7855,2655.1,2654.9,7.365]
[1750084548973,0.7855,2655.1,2654.5,14.61313912]
[1750084548974,1.29565969,2655.1,2654.5,14.61313912]
[1750084549206,30.0,2655.0,2654.6,11.13203986]
[1750084549599,33.76648227,2655.0,2654.6,7.365]
[1750084549774,30.0,2654.9,2654.7,7.357]
[1750084549973,30.0,2655.0,2654.5,10.846]
[1750084550197,30.0,2655.0,2654.7,3.76684396]
[1750084550415,30.0,2655.0,2654.6,11.1199929]
[1750084550727,30.0,2655.0,2654.6,7.353]
[1750084550889,30.0,2654.9,2654.6,7.353]
[1750084551083,30.0,2655.0,2654.6,11.12003977]
[1750084551279,30.0,2655.0,2654.6,7.353]
[1750084551486,30.0,2655.0,2654.8,3.76668366]
[1750084551790,30.0,2655.0,2654.9,7.343]
[1750084552125,30.0,2655.0,2654.9,11.10962021]
[1750084552328,30.0,2655.3,2654.9,11.10962021]
[1750084552530,30.0,2655.3,2654.9,7.343]
[1750084552880,30.0,2655.3,2654.5,11.6474]
[1750084553216,0.55,2655.0,2654.6,9.652]
[1750084553516,30.0,2654.9,2654.7,9.653]
[1750084553842,13.76671663,2654.9,2654.8,7.33]
[1750084554007,40.0,2654.9,2654.8,7.33]
[1750084554204,30.0,2655.1,2654.8,7.33]
[1750084554581,0.55,2655.2,2654.8,7.33]
[1750084554785,40.0,2655.1,2654.8,11.09666789]
[1750084555107,30.0,2655.1,2654.9,7.32]
[1750084555905,0.8264,2655.4,2655.2,3.76619463]
[1750084556220,3.76532053,2655.9,2655.3,7.311]
[1750084556221,30.0,2655.6,2655.3,7.311]
[1750084556514,33.76549226,2655.7,2655.3,7.311]
[1750084556725,30.0,2655.7,2655.3,7.311]
[1750084556881,30.0,2655.7,2655.4,3.76583216]
[1750084557081,0.188,2655.4,2655.3,11.0770528]
[1750084557394,0.188,2655.4,2655.3,13.4000528]
[1750084558176,0.188,2655.4,2655.3,9.615]
[1750084558376,0.188,2655.4,2655.3,3.7660528]
[1750084558620,0.7992,2656.3,2655.5,0.7805]
[1750084558823,0.7992,2656.3,2656.0,3.76498244]
[1750084559025,0.7992,2656.3,2656.1,7.294]
[1750084559393,0.55,2656.2,2656.1,7.294]
[1750084559594,0.7992,2656.3,2656.1,7.294]
[1750084559924,0.8029,2656.7,2656.4,3.76446132]
[1750084560086,0.8029,2656.7,2655.5,0.7805]
[1750084560087,30.0,2656.6,2655.7,3.95345032]
[1750084560400,10.0,2656.6,2656.5,3.76435159]
[1750084560601,10.0,2656.6,2656.5,7.282]
[1750084560602,30.0,2656.6,2656.5,7.282]
[1750084560799,0.8029,2656.7,2656.5,7.282]
[1750084560999,30.0,2656.8,2656.5,9.605]
[1750084561200,0.188,2656.5,2656.3,3.76455169]
[1750084561417,3.76449329,2656.4,2656.3,2.323]
[1750084561651,0.55,2656.2,2655.9,10.85]
[1750084561819,10.55,2656.5,2656.2,3.76466211]
[1750084562020,0.188,2656.2,2656.1,3.76485553]
[1750084562221,0.188,2656.2,2656.1,13.36285553]
[1750084562721,0.188,2656.2,2656.1,3.76485553]
[1750084562922,0.188,2656.2,2655.6,3.76550588]
[1750084562923,0.55,2656.1,2655.6,2.323]
[1750084563128,0.188,2656.2,2655.7,7.271]
[1750084563322,0.188,2656.2,2656.0,3.76493364]
[1750084563536,0.188,2656.2,2656.1,7.271]
[1750084563737,0.55,2656.1,2655.7,2.323]
[1750084563962,30.0,2656.0,2655.8,7.267]
[1750084564166,4.3149195,2656.1,2655.8,7.267]
[1750084564167,30.0,2655.9,2655.8,7.267]
[1750084564339,0.55,2655.9,2655.6,3.76554763]
[1750084564536,0.188,2655.6,2655.5,3.76569727]
[1750084564749,1.3189,2655.8,2655.5,2.323]
[1750084564955,4.31562735,2655.6,2655.5,2.323]
[1750084565181,0.55,2655.6,2655.5,2.323]
[1750084565328,4.31562735,2655.6,2655.5,2.323]
[1750084565533,4.31562735,2655.6,2655.0,3.76647758]
[1750084565534,10.188,2655.5,2655.0,3.76647758]
[1750084565733,0.55,2655.2,2655.1,7.256]
[1750084565931,4.31627272,2655.2,2654.9,2.323]
[1750084566211,0.188,2654.9,2654.8,14.61576209]
[1750084566344,0.188,2654.9,2654.8,21.86776209]
[1750084566671,0.188,2654.9,2654.8,18.099]
[1750084566974,0.738,2654.9,2654.8,10.849]
[1750084567146,0.738,2654.9,2654.8,18.1]
[1750084567676,0.738,2654.9,2654.8,21.86676209]
[1750084568168,1.5353,2654.9,2654.8,18.097]
[1750084568934,1.5353,2654.9,2653.6,13.76834457]
[1750084569162,0.55,2655.0,2654.2,9.58967124]
[1750084569334,0.55,2654.8,2654.5,3.76709947]
[1750084569542,4.55549792,2655.2,2654.2,10.59179712]
[1750084569543,0.55,2655.0,2654.2,3.76761359]
[1750084569734,0.55,2654.5,2654.3,2.323]
[1750084569942,34.55652971,2654.4,2654.3,2.323]
[1750084570250,34.55652971,2654.4,2654.3,9.56]
[1750084570786,40.55,2654.2,2654.1,0.02]
[1750084570937,0.55,2654.2,2654.1,7.257]
[1750084571278,34.31761359,2654.2,2654.1,0.02]
[1750084571487,30.55,2654.2,2654.1,7.255]
[1750084571774,34.31761359,2654.2,2654.1,0.02]
[1750084571991,30.55,2654.2,2654.1,7.251]
[1750084572277,0.55,2654.2,2654.1,11.01875554]
[1750084572797,10.0,2654.3,2654.2,3.76761359]
[1750084573135,40.0,2654.5,2654.3,3.76739971]
[1750084573339,30.0,2654.5,2654.3,3.76747164]
[1750084573551,0.55,2654.5,2654.4,10.98332971]
[1750084573969,0.55,2654.5,2654.3,3.76739515]
[1750084574191,0.55,2654.5,2654.4,10.98032971]
[1750084574393,0.55,2654.7,2654.4,7.213]
[1750084574701,40.0,2654.4,2654.2,3.767529]
[1750084574863,0.55,2654.5,2654.3,7.208]
[1750084575059,30.0,2654.4,2654.3,7.208]
[1750084575499,0.55,2654.3,2654.1,0.02]
[1750084575795,0.55,2654.3,2654.1,7.218]
[1750084576003,30.0,2654.2,2654.1,7.218]
[1750084576411,0.55,2654.5,2654.1,10.98568242]
[1750084576571,0.55,2654.3,2654.1,7.218]
[1750084576766,0.55,2654.5,2654.2,3.76761359]
[1750084577002,0.55,2654.3,2654.2,3.76761359]
[1750084577171,0.55,2654.3,2654.1,10.98567844]
[1750084577773,0.55,2654.3,2654.1,7.218]
[1750084578269,30.0,2654.3,2654.1,7.218]
[1750084578471,30.0,2654.3,2654.1,10.98573323]
[1750084578782,0.55,2654.5,2654.2,3.76753939]
[1750084578968,0.55,2654.5,2654.1,7.218]
[1750084578969,0.55,2654.3,2654.1,10.985677]
[1750084579212,4.31733542,2654.4,2654.2,7.174]
[1750084579367,0.55,2654.2,2654.1,0.02]
[1750084579577,0.55,2654.5,2654.1,10.95975049]
[1750084579768,30.0,2654.7,2654.4,3.76723813]
[1750084579995,0.7503,2654.8,2654.5,7.173]
[1750084579996,30.55,2654.6,2654.5,7.173]
[1750084580182,0.188,2654.2,2654.1,4.57924033]
[1750084580395,0.188,2654.2,2654.1,14.00024033]
[1750084580810,0.188,2654.2,2654.1,3.78774033]
[1750084581114,0.188,2654.2,2654.1,13.20374033]
[1750084581809,0.188,2654.2,2654.1,3.78774033]
[1750084582108,0.188,2654.2,2654.1,2.265]
[1750084582265,34.50561359,2654.2,2654.1,0.02]
[1750084582473,39.14376013,2654.2,2654.1,0.02]
[1750084583926,30.55,2654.1,2653.2,0.6667]
[1750084584129,30.0,2653.4,2653.3,7.146]
[1750084584272,10.0,2653.7,2653.3,7.146]
[1750084584273,0.55,2653.6,2653.3,7.146]
[1750084584473,0.55,2653.9,2653.5,3.76860749]
[1750084584710,0.55,2653.7,2653.3,7.146]
[1750084584867,0.55,2653.7,2653.5,3.76851027]
[1750084585213,0.55,2653.8,2653.6,7.142]
[1750084585515,0.55,2653.8,2653.7,7.139]
[1750084585748,0.55,2653.8,2653.3,3.76880895]
[1750084585749,0.55,2653.7,2653.3,3.76880895]
[1750084585897,0.55,2653.5,2653.4,7.137]
[1750084586087,0.55,2653.6,2653.4,7.137]
[1750084586613,0.55,2653.5,2653.4,7.137]
[1750084587114,0.55,2653.5,2653.4,7.135]
[1750084587314,30.55,2653.6,2653.4,7.126]
[1750084587472,30.55,2653.6,2653.2,0.6667]
[1750084587473,0.55,2653.4,2653.2,6.68163931]
[1750084587680,0.55,2653.4,2653.3,7.126]
[1750084588314,0.55,2653.4,2653.3,10.89489156]
[1750084588617,0.55,2653.4,2653.3,10.88489156]
[1750084588912,10.0,2653.7,2653.3,7.116]
[1750084589112,30.0,2653.9,2653.6,3.76837975]
[1750084589420,0.55,2653.8,2653.7,10.88026197]
[1750084589590,0.55,2653.9,2653.7,10.88026197]
[1750084589788,0.55,2653.9,2653.7,7.112]
[1750084589990,0.55,2653.9,2653.7,10.88025591]
[1750084590184,0.55,2653.9,2653.8,3.76818147]
[1750084590513,0.55,2653.9,2653.7,10.88026413]
[1750084591277,3.76762225,2654.2,2653.7,7.112]
[1750084591278,10.0,2654.2,2653.7,7.112]
[1750084591599,30.0,2654.1,2653.8,7.095]
[1750084591798,33.76778836,2654.1,2653.8,7.095]
[1750084592002,30.0,2654.0,2653.8,7.095]
[1750084592388,0.55,2653.9,2653.3,0.8238]
[1750084592708,0.55,2653.8,2653.5,3.76858463]
[1750084593017,0.55,2653.7,2653.6,13.02046548]
[1750084593210,4.31780717,2654.1,2653.7,3.76831454]
[1750084593525,0.55,2653.7,2653.6,13.02042238]
[1750084593738,4.31811296,2653.9,2653.6,9.247]
[1750084594036,0.55,2653.7,2653.6,2.165]
[1750084594236,0.55,2653.7,2653.6,9.241]
[1750084594598,3.76836028,2653.7,2653.2,0.6667]
[1750084594943,0.55,2653.4,2653.3,9.237]
[1750084595100,30.55,2653.4,2653.3,9.235]
[1750084595323,30.55,2653.4,2653.2,0.6667]
[1750084595324,4.36504654,2653.4,2653.2,0.6667]
[1750084595496,43.92030634,2653.3,2653.2,0.6667]
[1750084595697,44.8205096,2653.3,2653.2,0.6667]
[1750084595886,45.5769096,2653.3,2653.2,0.6667]